Cogmind - Beta 10.2 @@@ ROGUE MODE // 2021.10.24 @ 16:43:40 Player: Wakanaka Result: Destroyed by D-53 Grenadier with Mini Grenade Launcher Performance ------------- Evolutions (1) 500 Regions Visited (3) 600 Robots Destroyed (21) 105 Value Destroyed (280) 280 Prototype IDs (1) 20 Alien Tech Used (0) 0 Bonus (0) 0 TOTAL SCORE: 1505 Bonus ------- None Cogmind --------- Core Integrity 0/400 Matter 295/300 Energy 99/100 System Corruption 0% Temperature Cool (0) Movement Core (50) Location -9/Mines Parts ------- > --- POWER (1) -------- (None) > --- PROPULSION (4) --- (None) > --- UTILITY (2) ------ Improved Targeting Computer > --- WEAPON (2) ------- (None) > --- INVENTORY (4) ---- Light Ion Engine Wheel Transmission Jammer Hacking Suite Peak State ------------ > --- POWER ------------ Ion Engine > --- PROPULSION ------- Flight Unit VTOL Module VTOL Module VTOL Module > --- UTILITY ---------- Advanced Weight Redist. System Improved Targeting Computer > --- WEAPON ----------- Light EM Pulse Cannon Advanced Beam Cannon > --- INVENTORY -------- Transmission Jammer Hacking Suite Light EM Pulse Cannon Advanced Beam Cannon [Rating: 19] Favorites ----------- Power Light Ion Engine Engine Light Ion Engine Power Core Light Nuclear Core Propulsion Flight Unit Wheel Wheel Flight Unit Flight Unit Utility Improved Targeting Computer Device Advanced Weight Redist. System Storage Small Storage Unit Processor Improved Targeting Computer Weapon Light EM Pulse Cannon Energy Gun Small Laser Energy Cannon Light EM Pulse Cannon Ballistic Gun Light Assault Rifle Ballistic Cannon Light Cannon Build | -11 -10 -9 -9 ------- Run | Scr Mat Mat Min Slots Evolved 2 | . . 2 . Power . | . . . . Propulsion 2 | . . 2 . Utility . | . . . . Weapon . | . . . . Parts Attached 39 | 9 12 13 5 Power 5 | 1 1 1 2 Engine 4 | 1 1 1 1 Core 1 | . . . 1 Reactor . | . . . . Propulsion 10 | 3 2 4 1 Treads . | . . . . Leg . | . . . . Wheel 4 | 3 . . 1 Hover . | . . . . Flight 6 | . 2 4 . Utility 6 | 3 1 2 . Device 3 | 1 1 1 . Storage 1 | 1 . . . Processor 2 | 1 . 1 . Hackware . | . . . . Protection . | . . . . Artifact . | . . . . Weapon 18 | 2 8 6 2 Energy Gun 3 | 2 1 . . Energy Cannon 9 | . 2 5 2 Ballistic Gun 4 | . 3 1 . Ballistic Cannon 2 | . 2 . . Launcher . | . . . . Special Weapon . | . . . . Impact Weapon . | . . . . Slashing Weapon . | . . . . Piercing Weapon . | . . . . Special Melee Weapon . | . . . . Unidentified Prototypes 1 | . . 1 . Parts Lost 15 | . 2 . 13 Power 3 | . . . 3 Propulsion 5 | . . . 5 Utility 1 | . . . 1 Weapon 6 | . 2 . 4 Highest Loss Streak 12 | . 2 . 12 Average Slot Usage (%) 86 | . 93 87 67 Engine 11 | . 14 11 7 Wheel 3 | . 12 . 1 Flight 26 | . 15 33 25 Device 10 | . 13 10 7 Processor 11 | . 14 11 11 Energy Gun 2 | . 9 . . Energy Cannon 14 | . 3 20 13 Ballistic Gun 2 | . 6 1 . Naked Turns . | . . . . Heaviest Build 13 | 10 11 13 13 Greatest Support 22 | 20 20 22 19 Greatest Overweight (x) 1 | . 1 1 . Average Overweight (x) . | . . . . Largest Inventory Capacity 6 | 6 4 4 4 Average Capacity 4 | 5 4 4 4 Most Carried 5 | 5 4 4 4 Average Carried 3 | 2 3 3 3 Final Capacity 4 | 4 4 4 4 Final Carried 4 | 3 3 4 4 Class Distribution -------------------- 66% | Mutant 19% | Scavenger-Mutant 13% | Sprinter Dominant Class ---------------- Scavenger-Mutant | -10/Materials Mutant | -9/Materials Sprinter | -9/Mines Resources | -11 -10 -9 -9 ----------- Run | Scr Mat Mat Min Matter Collected 567 | 290 104 168 5 Remotely . | . . . . Salvage Created 758 | 225 184 280 69 Parts 43 | 14 12 17 . Haulers Intercepted 1 | . . 1 . Recyclers Shooed 1 | . 1 . . Parts Field Recycled . | . . . . Retrieved Matter . | . . . . Parts Self-Destructed . | . . . . Prevented . | . . . . Kills | -11 -10 -9 -9 ------- Run | Scr Mat Mat Min Combat Hostiles Destroyed 12 | . 4 4 4 Guns 4 | . 4 . . Cannons 8 | . . 4 4 Classes Destroyed 9 | 3 4 1 1 Worker 1 | 1 . . . Tunneler 5 | 5 . . . Hauler 1 | . . 1 . Recycler 3 | 1 1 1 . Operator 2 | . 1 1 . Watcher 1 | . 1 . . Swarmer 4 | . 3 1 . Grunt 4 | . 1 3 . Assembled 4 | . . . 4 Best Kill Streak 4 | 3 3 2 4 Combat Bots Only 4 | . 3 1 4 Max Kills in Single Turn 1 | 1 1 1 1 Gunslinging . | . . . . Exploded . | . . . . Melee . | . . . . Uniques/NPCs Destroyed . | . . . . Combat | -11 -10 -9 -9 -------- Run | Scr Mat Mat Min Damage Taken 1282 | . 190 197 895 Core 459 | . 17 36 406 Absorbed by Shields . | . . . . Core Remaining (%) 96 | 100 93 . . Volleys Fired 62 | 14 21 19 8 Largest 2 | 2 2 2 2 Hottest 124 | 80 80 124 124 Shots Fired 108 | 28 35 32 13 Gun 60 | 28 30 2 . Cannon 48 | . 5 30 13 Launcher . | . . . . Special . | . . . . Kinetic 12 | . 10 2 . Thermal 77 | 28 25 16 8 Explosive . | . . . . Electromagnetic 19 | . . 14 5 Robot Hit Streak 9 | 9 5 7 2 Robot Miss Streak 4 | 1 4 3 3 Penetration Max . | . . . . Secondary Targets 1 | . 1 . . Max Gunslinging Chain 1 | . 1 . . Shots Hit Robots 65 | 22 20 18 5 Core Hits 32 | 8 11 8 5 Critical Hits 1 | . . . 1 Critical Kills . | . . . . Critical Parts Destroyed 1 | . . . 1 Melee Attacks . | . . . . Impact . | . . . . Slashing . | . . . . Piercing . | . . . . Sneak Attacks . | . . . . Combat Hostiles . | . . . . Follow-up Attacks . | . . . . Damage Inflicted 875 | 238 188 333 116 Guns 398 | 238 141 19 . Cannons 477 | . 47 314 116 Explosions . | . . . . Melee . | . . . . Ramming . | . . . . Kinetic 90 | . 71 19 . Thermal 537 | 238 117 122 60 Explosive . | . . . . Electromagnetic 248 | . . 192 56 Impact . | . . . . Slashing . | . . . . Piercing . | . . . . Highest Corruption . | . . . . Average Corruption . | . . . . Corruption Purged . | . . . . Overload Shots . | . . . . Overflow Damage 6 | . . 6 . Projectiles 6 | . . 6 . Explosions . | . . . . Melee . | . . . . Knockbacks 1 | . 1 . . Impact . | . . . . Kinetic 1 | . 1 . . Secondary . | . . . . Self-Inflicted Damage . | . . . . Shots . | . . . . Rammed . | . . . . Targets Rammed . | . . . . Kicked . | . . . . Crushed . | . . . . Highest Temperature 310 | 72 142 278 310 Average Temperature 87 | 22 63 97 174 Received Heat Transfer 63 | . 6 57 . Siege Activations . | . . . . Robots Corrupted . | . . . . Combat Hostiles . | . . . . Parts Fried . | . . . . Impact Corruptions . | . . . . Robots Melted . | . . . . Combat Hostiles . | . . . . Parts Melted 2 | 1 1 . . Heat Transferred 1158 | 550 275 222 111 Parts Sabotaged . | . . . . Parts Stolen . | . . . . Parts Stripped . | . . . . Power Chain Reactions . | . . . . Missiles Intercepted . | . . . . Alert | -11 -10 -9 -9 ------- Run | Scr Mat Mat Min Peak Influence 197 | 35 169 197 39 Initial 70 | . 22 70 39 Average 80 | 14 99 106 25 Maximum Alert Level . | . . . . Low Security (%) 100 | 100 100 100 100 Level 1 . | . . . . Level 2 . | . . . . Level 3 . | . . . . Level 4 . | . . . . Level 5 . | . . . . High Security . | . . . . Max Security . | . . . . Squads Dispatched 2 | . 1 1 . Investigation . | . . . . Extermination . | . . . . Reinforcement 2 | . 1 1 . Assault . | . . . . Garrison . | . . . . Intercept . | . . . . Construction Impeded . | . . . . Haulers Reinforced . | . . . . Stealth | -11 -10 -9 -9 --------- Run | Scr Mat Mat Min Distress Signals 1 | . 1 . . Communications Jammed . | . . . . Distress Signals . | . . . . Times Spotted 48 | . 10 14 24 Peak Tracking Total 19 | . 5 4 19 Tactical Retreats 3 | . . 1 2 Traps | -11 -10 -9 -9 ------- Run | Scr Mat Mat Min Traps Triggered 1 | . 1 . . Indirectly . | . . . . Trap Hack Attempts . | . . . . Triggered . | . . . . Disarmed . | . . . . Reprogrammed . | . . . . Reused . | . . . . Traps Extracted . | . . . . Installed . | . . . . Triggered . | . . . . Machines | -11 -10 -9 -9 ---------- Run | Scr Mat Mat Min Machines Disabled . | . . . . Max in Single Turn . | . . . . Machines Sabotaged . | . . . . Garrisons Compromised . | . . . . Overloaded Fab Kills . | . . . . Fab Network Shutdowns . | . . . . Hacking | -11 -10 -9 -9 --------- Run | Scr Mat Mat Min Machines Accessed 4 | . 2 2 . Terminals 3 | . 2 1 . Fabricators . | . . . . Repair Stations . | . . . . Recycling Units 1 | . . 1 . Scanalyzers . | . . . . Garrison Access . | . . . . Total Hacks 12 | . 7 5 . Successful 7 | . 4 3 . Failed 5 | . 3 2 . Catastrophic 2 | . 1 1 . Database Lockouts . | . . . . Manual 7 | . 5 2 . Terminals 11 | . 7 4 . Fabricators . | . . . . Repair Stations . | . . . . Recycling Units 1 | . . 1 . Scanalyzers . | . . . . Garrison Access . | . . . . Terminal Hacks 6 | . 4 2 . Record 4 | . 3 1 . Branch Access Points 2 | . 1 1 . Fabricator Hacks . | . . . . Repair Station Hacks . | . . . . Recycling Unit Hacks 1 | . . 1 . Report Inventory 1 | . . 1 . Scanalyzer . | . . . . Garrison Access Hacks . | . . . . Unauthorized Hacks . | . . . . Terminals . | . . . . Fabricators . | . . . . Repair Stations . | . . . . Recycling Units . | . . . . Scanalyzers . | . . . . Garrison Access . | . . . . Data Cores Recovered . | . . . . Used . | . . . . Hacking Detections 3 | . 2 1 . Full Trace Events 1 | . 1 . . Feedback Events . | . . . . Feedback Blocked . | . . . . Robot Schematics Acquired . | . . . . Robots Built . | . . . . Matter . | . . . . Time . | . . . . Total Robot Build Rating . | . . . . Part Schematics Acquired . | . . . . Parts Built . | . . . . Matter . | . . . . Time . | . . . . Total Part Build Rating . | . . . . Parts Repaired . | . . . . Time . | . . . . Parts Recycled . | . . . . Recycled Matter . | . . . . Retrieved Matter . | . . . . Retrieved Components . | . . . . Parts Scanalyzed . | . . . . Part Schematics Acquired . | . . . . Parts Damaged . | . . . . Bothacking | -11 -10 -9 -9 ------------ Run | Scr Mat Mat Min Used RIF Installer . | . . . . Robots Hacked . | . . . . Non-combat . | . . . . Combat . | . . . . Robot Hacks Applied . | . . . . Relay Couplers Released . | . . . . Robots Rewired . | . . . . Allies Hacked . | . . . . Hacks Repelled . | . . . . Allies | -11 -10 -9 -9 -------- Run | Scr Mat Mat Min Total Allies 3 | . . . 3 Largest Group 3 | . . . 3 Highest-Rated Group 40 | . . . 40 Highest-Rated Ally 16 | . . . 16 Total Orders . | . . . . Ally Attacks 14 | . . . 14 Total Damage 112 | . . . 112 Kills 3 | . . . 3 Allies Corrupted . | . . . . Allies Melted . | . . . . Intel | -11 -10 -9 -9 ------- Run | Scr Mat Mat Min Robot Analysis Total . | . . . . Derelict Logs Recovered 1 | . . . 1 Drone Launches . | . . . . Drone Recoveries . | . . . . Exploration | -11 -10 -9 -9 ------------- Run | Scr Mat Mat Min Turns Passed 980 | 142 246 454 138 Spaces Moved 820 | 96 277 294 153 Core 49 | 3 . . 46 Treads . | . . . . Legs . | . . . . Wheels 187 | 93 73 . 21 Hover . | . . . . Flight 584 | . 204 294 86 Fastest Speed 31 | 50 37 31 31 Average Speed 46 | 83 48 34 43 Slowest Speed 117 | 100 117 117 80 Overloaded Moves . | . . . . Propulsion Burnouts . | . . . . Robots Hopped 1 | . . 1 . Cave-ins Triggered . | . . . . Exploration Rate (%) 28 | 3 36 32 44 Regions Visited 3 Branch Regions 1 Pre-discovered Areas . | . . . . Known Exits Taken 1 | . . 1 . Unknown Exits Taken 2 | 1 1 . . Scrap Searched . | . . . . Spaces Dug . | . . . . Terrain Destroyed . | . . . . Melee . | . . . . Projectile . | . . . . AOE . | . . . . Terrain Rammed . | . . . . Walls Destroyed . | . . . . Machines Disabled . | . . . . Actions | -11 -10 -9 -9 --------- Run | Scr Mat Mat Min Total 1311 | 128 357 615 211 Wait 336 | . 23 272 41 Move 815 | 95 276 291 153 Hop 1 | . . 1 . Pick Up 34 | 9 13 8 4 Fast Attach 10 | 2 3 4 1 Attach 18 | 5 6 3 4 Detach . | . . . . Swap 11 | 2 3 6 . Drop 24 | 1 12 11 . Fire 62 | 14 21 19 8 Melee . | . . . . Ram . | . . . . Kick . | . . . . Crush . | . . . . Escape Stasis . | . . . . Rewire . | . . . . Trap . | . . . . Miscellaneous . | . . . . Route ------- -11/Scrapyard -10/Materials (discovered 2 exits: *Mat / *Min) -9/Materials -9/Mines History --------- Turn | Location | Event 15 | -11/Scrapyard | Discovered new exit (range 16) 143 | -11/Scrapyard | Entered Materials 150 | -10/Materials | Discovered new exit (range 16) 227 | -10/Materials | Discovered new exit (range 15) 235 | -10/Materials | Identified exit to Mines 389 | -10/Materials | Entered another Materials area 389 | -9/Materials | Evolved 2 slots: Propulsion x2 499 | -9/Materials | Identified exit to Mines 742 | -9/Materials | Build established: Mutant 843 | -9/Materials | Entered Mines 858 | -9/Mines | Received a Rocket Launcher from a helpful Derelict 878 | -9/Mines | Assisted by bots powering up and referring to "LRC-V3" 904 | -9/Mines | Assembled infested the area 945 | -9/Mines | Learned Materials trap positions 947 | -9/Mines | Core integrity fell below 50% 971 | -9/Mines | Lost 12 parts (3p4n1u4w) 980 | -9/Mines | Core integrity fell below 20% 981 | -9/Mines | Destroyed by D-53 Grenadier with Mini Grenade Launcher Last Messages --------------- 00937_ U-05 Engineer builds a Wall. 00938_ U-05 Engineer lays Concrete. 00938_ Acquired Ion Engine. 00939_ U-05 Engineer lays Concrete. 00940_ U-05 Engineer builds a Wall. 00940_ Ion Engine destroyed. 00940_ R-06 Scavenger collects Aluminum Leg. 00941_ U-05 Engineer builds a Wall. 00945_ Acquired derelict log, extracted data. Data stored: Materials trap records. 00946_ as-80089 destroyed. 00949_ as-14802 destroyed. 00952_ Acquired Wheel. 00954_ The unstable cave ceiling collapses. 00961_ Acquired Lgt. Ion Engine. 00962_ Acquired 5 matter. 00963_ Acquired Wheel. 00977_ Core Extractor disabled. 00978_ as-30250 destroyed. 00980_ Wheel destroyed. Map ----- +----------------------------------------------------+ | | | | | | | | | | | | | | | | | | | | | | | | | | | | | | | | | | | | | | | | | ???????????????###?????????????????????????? | | ?????????????### #????????????????????????? | | ?????????##### ##??????????????????????? | | ?????????# ##????????????????????## | | ?????????# ####????????????????# | | ????????# @ #???????????????# | | ????????## d ## #??????????????# | | ????????# d ## #?????????????# | | ????????# #### #????????????? | | ????????# #### ####?????????? # | | ????????## ##?# ##????????# #? | | ?????????# #??# #???????? =#?? | | ?????????#########??# """ ##????### %#?? | | ????????????????????## """ ###### " |##? | | ?????????????????????## """ % #? | | ??????????????????????# #? | | ??????????????????????## ### # #? | | ???????????????????????## ##?# ##? | | ????????????????????????## ###??# ##?? | | ?????????????????????????####????# #??? | | ?????????????????????????????????# ##??? | | ?????????????????????????????????# #???? | | ????????????????????????????????#### ##??? | | ????????????????????????????????# #??? | | ????????????????????????????????# ##??? | | ????????????????????????????????# ##?? | | ????????????????????????????????## ##? | | ????????????????#####???????????# ## | | ????????????????# #???????????# # | | ????????????????# #???????????# | +----------------------------------------------------+ Best States ------------- Heat Dissipation 28 Energy Generation 10 Energy Capacity 250 Matter Stores 300 Matter Capacity 300 Sight Range 16 Terrain Scan Range 16 Terrain Scan Density 60 Additional Mass Support 9 Evasion (%) 63 Targeting Accuracy 6 Item Schematics ----------------- None Robot Schematics ------------------ None Fabricated ------------ Nothing Alien Tech Used ----------------- None Achievements -------------- None Challenges ------------ None Game ------ Seed HeatGammaSystem Manual? 0 Play Time 00:30:38 Cumulative 37.5 hours Start 2021.10.24 @ 16:13:23 End 2021.10.24 @ 16:43:40 Sessions 1 Manual Loads 0 Difficulty Rogue Special Mode None Game No. 45 Rogue 45 Adventurer 0 Explorer 0 Win Type - Total 0 Types 0/0/0/0/0/0/0/0/0 Lore% 24 Gallery% 33 Achievement% 23 Wizard Run 0 Options --------- ASCII 0 Keyboard 0 Movement Mouse Keybinds 0 Fullscreen 1 Font 18/SmallcapsGlow Map View 76x50 Tactical HUD 1 Map Filters NONE Filters NONE Steam 1 RUN: 871e85da-0e6e-4894-ab1c-d87162399fcb